bitfinex-derivatives/quotes_SOLF0:USTF0_20250924
["timestamp","ask_amount","ask_price","bid_price","bid_amount"]
[1758753828029,7.65,211.75,211.68,7.75]
[1758753828432,4.2486,211.73,211.68,7.75]
[1758753828638,7.65,211.72,211.68,7.75]
[1758753829830,7.65,211.72,211.61,14.37477838]
[1758753829831,73.7429,211.72,211.62,7.75]
[1758753830141,7.65,211.72,211.62,48.85]
[1758753830333,4.2492,211.7,211.62,53.1005]
[1758753830531,11.8992,211.7,211.62,53.1005]
[1758753832542,4.2494,211.69,211.62,53.1005]
[1758753834234,7.35,211.74,211.66,7.6]
[1758753835345,11.5983,211.74,211.67,4.2495]
[1758753835545,11.5983,211.74,211.68,7.6]
[1758753836545,4.2486,211.73,211.68,7.6]
[1758753836741,7.35,211.76,211.66,2.69930206]
[1758753836946,7.35,211.74,211.65,4.25]
[1758753837147,7.35,211.74,211.66,7.6]
[1758753837645,4.2488,211.72,211.66,11.8497]
[1758753838746,11.5982,211.74,211.67,4.2495]
[1758753838949,11.5982,211.74,211.68,7.6]
[1758753840150,4.2486,211.73,211.68,7.6]
[1758753840539,7.68,211.72,211.68,7.6]
[1758753840742,7.68,211.71,211.68,7.6]
[1758753844047,3.46629314,211.7,211.64,7.31]
[1758753844247,3.46944759,211.69,211.64,7.31]
[1758753844451,7.68,211.71,211.64,7.31]
[1758753844643,3.46957791,211.7,211.64,7.31]
[1758753844846,3.46957791,211.69,211.64,7.31]
[1758753845149,7.68,211.71,211.64,7.31]
[1758753845349,7.72254141,211.7,211.64,7.31]
[1758753845546,3.47344141,211.69,211.63,4.2503]
[1758753845749,3.47344141,211.68,211.64,7.31]
[1758753845948,4.2491,211.7,211.64,7.31]
[1758753846153,3.47352928,211.69,211.63,4.2503]
[1758753846453,3.47352928,211.68,211.64,7.31]
[1758753846644,4.2491,211.7,211.64,7.31]
[1758753846847,3.47493794,211.69,211.63,4.2503]
[1758753847047,3.47493794,211.68,211.63,4.2503]
[1758753847248,4.2491,211.7,211.64,7.31]
[1758753847448,3.47496931,211.69,211.64,7.31]
[1758753847748,3.47496931,211.68,211.63,4.2503]
[1758753847954,4.2491,211.7,211.64,7.31]
[1758753848155,3.47496931,211.69,211.63,4.2503]
[1758753848450,3.47496931,211.68,211.63,4.2503]
[1758753848650,3.47496931,211.67,211.63,4.2503]
[1758753848852,4.2491,211.7,211.64,7.31]
[1758753849047,3.47538778,211.69,211.63,4.2503]
[1758753849249,3.47538778,211.68,211.63,4.2503]
[1758753849449,3.47538778,211.67,211.64,7.31]
[1758753849655,7.68,211.68,211.64,7.31]
[1758753849951,3.47541366,211.67,211.63,4.2503]
[1758753850257,7.68,211.68,211.63,4.2503]
[1758753850451,3.47541138,211.67,211.64,7.31]
[1758753850647,73.7705,211.72,211.61,16.81972893]
[1758753850852,8.72819698,211.71,211.61,14.12042687]
[1758753851154,7.68,211.69,211.6,7.31]
[1758753851353,7.68,211.67,211.6,7.31]
[1758753851545,3.47554566,211.66,211.6,7.31]
[1758753851750,3.47554566,211.65,211.59,7.31]
[1758753851954,3.47554566,211.64,211.58,7.31]
[1758753852149,3.47554566,211.63,211.58,7.31]
[1758753852460,7.68,211.65,211.58,7.31]
[1758753852649,3.47432197,211.64,211.58,7.31]
[1758753852849,11.15432197,211.63,211.57,115.42]
[1758753853055,11.15432197,211.63,211.58,7.31]
[1758753853056,7.68,211.63,211.58,7.31]
[1758753853249,7.68,211.63,211.57,119.6716]
[1758753853956,7.68,211.63,211.58,7.31]
[1758753854347,7.68,211.63,211.59,7.31]
[1758753854552,68.79730206,211.7,211.57,119.6716]
[1758753854553,3.47275121,211.62,211.57,122.73]
[1758753854750,2.69930206,211.67,211.57,115.42]
[1758753854958,2.69930206,211.64,211.57,115.42]
[1758753855150,7.68,211.59,211.57,115.42]
[1758753855359,3.4719704,211.58,211.49,2.69930206]
[1758753855562,3.4719704,211.57,211.5,34.39]
[1758753855752,3.4719704,211.56,211.5,34.39]
[1758753855963,11.9316,211.58,211.5,34.39]
[1758753856153,3.47236174,211.57,211.5,34.39]
[1758753856359,11.9316,211.58,211.5,34.39]
[1758753856663,3.46934109,211.57,211.5,34.39]
[1758753856864,11.9316,211.58,211.5,48.49216524]
[1758753857064,3.46934109,211.57,211.5,48.49216524]
[1758753857258,11.9316,211.58,211.5,48.49216524]
[1758753857461,3.46694695,211.57,211.5,48.49216524]
[1758753857659,11.9316,211.58,211.5,48.49216524]
[1758753857963,3.46694695,211.57,211.5,48.49216524]
[1758753858261,11.9316,211.58,211.5,48.49216524]
[1758753858565,3.46496107,211.57,211.5,48.49216524]
[1758753858758,11.9316,211.58,211.5,48.49216524]
[1758753858958,3.46496009,211.57,211.51,7.31]
[1758753859161,4.251,211.61,211.51,7.31]
[1758753859362,3.46470013,211.6,211.51,7.31]
[1758753859565,3.46470013,211.59,211.51,7.31]
[1758753859771,3.46470013,211.58,211.51,7.31]
[1758753860062,7.68,211.67,211.56,7.31]
[1758753860365,3.46206311,211.66,211.59,7.31]
[1758753860560,7.68,211.67,211.59,7.31]
[1758753860561,3.46206311,211.65,211.59,7.31]
[1758753860766,7.68,211.67,211.59,7.31]
[1758753860966,3.4612407,211.66,211.59,7.31]
[1758753861165,3.4612407,211.65,211.59,7.31]
[1758753861362,11.9298,211.67,211.59,7.31]
[1758753861563,3.45801599,211.66,211.59,7.31]
[1758753861757,3.45801599,211.65,211.59,7.31]
[1758753861963,11.9298,211.67,211.59,7.31]
[1758753862163,3.45801599,211.66,211.59,7.31]
[1758753862368,3.45801599,211.65,211.59,7.31]
[1758753862567,11.9298,211.67,211.59,7.31]
[1758753862869,3.45774281,211.66,211.59,7.31]
[1758753863068,3.45774281,211.65,211.59,7.31]
[1758753863266,11.9298,211.67,211.59,11.5611]
[1758753863467,3.45748355,211.66,211.59,7.31]
[1758753863669,7.68,211.67,211.59,7.31]
[1758753863870,3.45744855,211.66,211.59,7.31]
[1758753864068,7.68,211.67,211.59,7.31]
[1758753864270,3.45744855,211.66,211.59,7.31]
[1758753864470,7.68,211.67,211.59,7.31]
[1758753864671,3.45732735,211.66,211.59,7.31]
[1758753864972,7.68,211.67,211.59,7.31]
[1758753865175,3.45732735,211.66,211.61,4.2507]
[1758753865373,7.88,211.67,211.61,4.2507]
[1758753865572,11.33705398,211.66,211.61,4.2507]
[1758753865764,7.88,211.66,211.62,7.62]
[1758753866164,7.88,211.66,211.61,4.2507]
[1758753866471,7.88,211.66,211.62,7.62]
[1758753868862,4.2496,211.68,211.62,7.62]
[1758753869067,7.88,211.66,211.61,4.2507]
[1758753869267,7.88,211.67,211.61,11.8707]
[1758753869463,7.88,211.65,211.61,11.8707]
[1758753869672,4.2498,211.67,211.61,7.62]
[1758753869873,3.45739426,211.66,211.61,7.62]
[1758753870064,7.88,211.66,211.61,7.62]
[1758753870268,3.45774422,211.65,211.61,7.62]
[1758753870470,12.1298,211.67,211.61,7.62]
[1758753870666,7.88,211.65,211.61,7.62]
[1758753872576,12.1293,211.69,211.61,7.62]
[1758753872870,3.45835831,211.68,211.61,7.62]
[1758753873076,3.45835831,211.67,211.61,7.62]
[1758753873275,3.45835831,211.66,211.58,7.62]
[1758753873478,11.33835831,211.65,211.62,7.62]
[1758753873672,7.88,211.65,211.62,7.62]
[1758753876477,7.88,211.65,211.59,11.8711]
[1758753877873,7.88,211.65,211.6,4.2509]
[1758753878078,7.88,211.65,211.61,7.62]
[1758753879176,7.88,211.65,211.6,4.2509]
[1758753879376,7.88,211.65,211.61,7.62]
[1758753879577,3.45931949,211.64,211.58,7.62]
[1758753879777,7.88,211.62,211.58,7.62]
[1758753879977,7.88,211.6,211.54,7.62]
[1758753881181,7.88,211.6,211.54,11.8721]
[1758753885282,13.86063467,211.61,211.55,4.2519]
[1758753885580,11.34063643,211.6,211.56,7.62]
[1758753885780,7.88,211.6,211.56,7.62]
[1758753886285,5.98063467,211.61,211.56,7.62]
[1758753886579,7.88,211.59,211.53,13.60193467]
[1758753886973,9.60963467,211.59,211.53,7.62]
[1758753887378,1.72963467,211.59,211.53,7.62]
[1758753887576,66.1128,211.65,211.51,11.8728]
[1758753887577,9.60963467,211.57,211.51,11.8728]
[1758753887774,9.60963467,211.57,211.51,7.62]
[1758753887977,9.60963467,211.55,211.48,7.62]
[1758753888178,13.86183467,211.55,211.48,7.62]
[1758753889382,4.2524,211.54,211.48,7.62]
[1758753889888,9.60963467,211.55,211.48,7.62]
[1758753890185,3.46224775,211.54,211.48,7.62]
[1758753890387,13.86183467,211.55,211.48,7.62]
[1758753890884,13.86183467,211.55,211.48,11.8733]
[1758753895990,3.44505893,211.54,211.48,11.8733]
[1758753896187,13.86183467,211.55,211.48,11.8733]
[1758753896490,7.3,211.54,211.48,11.8733]
[1758753896991,1.72963467,211.55,211.49,4.2531]
[1758753897191,9.02963467,211.55,211.49,4.2531]
[1758753900201,13.28173467,211.55,211.49,4.2531]
[1758753900392,9.02963467,211.55,211.48,7.3]
[1758753901096,4.2526,211.53,211.48,7.3]
[1758753901296,4.2526,211.53,211.48,7.73]
[1758753901496,7.57,211.52,211.48,7.73]
[1758753901693,7.57,211.52,211.47,20.07312927]
[1758753901889,7.57,211.52,211.48,7.73]
[1758753902495,7.57,211.52,211.47,20.07312927]
[1758753902794,7.57,211.51,211.45,13.71363467]
[1758753902996,7.57,211.51,211.46,115.46]
[1758753903391,4.2527,211.52,211.46,115.46]
[1758753903392,11.8227,211.52,211.46,115.46]
[1758753904802,7.57,211.53,211.47,1.72963467]
[1758753905600,7.57,211.53,211.47,5.98313467]
[1758753908603,11.8225,211.53,211.47,5.98313467]
[1758753909901,11.8225,211.53,211.47,1.72963467]
[1758753910107,7.57,211.51,211.45,1.72963467]
[1758753910500,4.2533,211.49,211.45,1.72963467]
[1758753910697,1.72963467,211.5,211.41,1.72963467]
[1758753910901,7.57,211.48,211.41,117.16963467]
[1758753911902,11.8235,211.48,211.41,117.16963467]
[1758753912105,11.8235,211.48,211.41,124.89963467]
[1758753913100,4.2538,211.47,211.41,124.89963467]
[1758753914610,7.57,211.52,211.46,7.73]
[1758753914805,7.57,211.52,211.47,1.72963467]
[1758753915003,7.57,211.55,211.47,1.72963467]
[1758753915208,7.57,211.53,211.47,1.72963467]
[1758753916210,4.2527,211.52,211.47,1.72963467]
[1758753916402,4.2527,211.52,211.48,7.73]
[1758753916403,11.8227,211.52,211.48,7.73]
[1758753916707,11.8227,211.52,211.47,1.72963467]
[1758753916908,4.2522,211.54,211.48,7.73]
[1758753917109,4.2522,211.54,211.51,7.73]
[1758753917503,7.57,211.56,211.51,7.73]
[1758753917701,3.43962352,211.55,211.5,1.72963467]
[1758753917905,7.57,211.56,211.51,7.73]
[1758753918105,7.57,211.54,211.51,7.73]
[1758753918813,7.57,211.56,211.48,1.72963467]
[1758753919007,190.1349,211.58,211.48,1.72963467]
[1758753919008,7.57,211.54,211.48,1.72963467]
[1758753919409,7.57,211.51,211.47,7.73]
[1758753920013,7.57,211.51,211.46,1.72963467]
[1758753920210,7.57,211.51,211.47,7.73]
[1758753921010,11.823,211.51,211.47,7.73]
[1758753922417,11.823,211.51,211.46,1.72963467]
[1758753922618,11.823,211.51,211.47,7.73]
[1758753923219,7.57,211.5,211.47,7.73]
[1758753923524,11.8232,211.5,211.44,124.89963467]
[1758753924118,4.2534,211.49,211.44,124.89963467]
[1758753924426,7.73,211.5,211.44,123.17]
[1758753924615,3.47606912,211.49,211.44,123.17]
[1758753924818,7.73,211.47,211.44,123.17]
[1758753925019,7.73,211.47,211.44,7.73]
[1758753926420,5.98263467,211.51,211.44,1.72963467]
[1758753926614,3.47691931,211.5,211.44,1.72963467]
[1758753926819,3.47691931,211.49,211.47,7.71]
[1758753927020,9.45963467,211.55,211.48,9.43963467]
[1758753927221,3.47685028,211.54,211.48,9.43963467]
[1758753927525,3.47685028,211.53,211.49,7.71]
[1758753927720,3.47685028,211.52,211.49,7.71]
[1758753927928,3.47685028,211.51,211.49,7.71]
[1758753928124,4.2525,211.53,211.49,7.71]
[1758753928423,11.2070392,211.52,211.5,1.72963467]
[1758753928623,3.4770392,211.51,211.48,1.72963467]
[1758753929123,7.73,211.56,211.49,7.71]
[1758753929327,3.47789335,211.55,211.49,7.71]
[1758753929523,3.47789335,211.55,211.48,1.72963467]
[1758753929524,3.47789335,211.54,211.48,9.43963467]
[1758753929725,3.47789335,211.53,211.48,1.72963467]
[1758753930025,3.47789335,211.52,211.48,1.72963467]
[1758753930322,3.47789335,211.51,211.49,7.71]
[1758753930524,3.47789335,211.5,211.49,7.71]
[1758753930717,3.47789335,211.52,211.49,7.71]
[1758753930914,3.47789335,211.51,211.49,7.71]
[1758753931117,3.47789335,211.5,211.49,7.71]
[1758753932621,3.47789335,211.5,211.45,7.71]
[1758753932819,3.47789335,211.49,211.45,9.43963467]
[1758753933024,6.98228599,211.57,211.47,1.72963467]
[1758753933322,3.4820987,211.56,211.49,1.72963467]
[1758753933527,3.4820987,211.55,211.49,1.72963467]
[1758753933727,3.4820987,211.54,211.5,7.71]
[1758753933927,3.4820987,211.53,211.5,7.71]
[1758753934228,3.4820987,211.52,211.5,7.71]
[1758753934425,3.4820987,211.51,211.5,7.71]
[1758753934822,7.73,211.57,211.5,7.71]
[1758753935025,3.48171342,211.56,211.51,1.72963467]
[1758753935227,3.48171342,211.55,211.52,7.71]
[1758753935427,3.48171342,211.54,211.52,7.71]
[1758753935627,3.48171342,211.53,211.52,7.71]
[1758753936432,4.2512,211.6,211.52,11.9626]
[1758753936630,3.48113511,211.59,211.53,1.72963467]
[1758753936927,3.48113511,211.58,211.54,7.71]
[1758753937130,3.48113511,211.57,211.54,7.71]
[1758753937327,3.48113511,211.56,211.54,7.71]
[1758753937629,3.48113511,211.55,211.54,7.71]
[1758753939930,3.48113511,211.55,211.51,1.72963467]
[1758753940129,4.2516,211.58,211.52,7.71]
[1758753940436,7.73,211.56,211.51,1.72963467]
[1758753940628,3.47973645,211.55,211.51,7.71]
[1758753940832,7.73,211.59,211.51,7.71]
[1758753941033,3.47931994,211.58,211.51,7.71]
[1758753941233,7.73111994,211.57,211.51,7.71]
[1758753941434,3.47931994,211.56,211.5,58.2329]
[1758753941633,3.47931994,211.55,211.5,58.2329]
[1758753941832,4.2518,211.57,211.51,7.71]
[1758753942032,3.47905375,211.56,211.5,58.2329]
[1758753942234,3.47905375,211.55,211.5,58.2329]
[1758753942533,4.2518,211.57,211.51,7.71]
[1758753942728,3.47873036,211.56,211.51,7.71]
[1758753942928,131.95561148,211.62,211.51,7.71]
[1758753942929,4.2513,211.59,211.51,10.41296016]
[1758753943130,3.47852116,211.58,211.52,7.71]
[1758753943334,3.47852116,211.57,211.52,7.71]
[1758753943536,3.47852116,211.56,211.52,7.71]
[1758753943834,4.2513,211.59,211.52,7.71]
[1758753944035,3.47803749,211.58,211.52,7.71]
[1758753944236,3.47803749,211.57,211.53,7.71]
[1758753944432,3.47803749,211.56,211.52,4.2525]
[1758753944633,4.2513,211.59,211.53,7.71]
[1758753944935,3.47758125,211.58,211.53,7.71]
[1758753945128,3.47758125,211.57,211.52,4.2525]
[1758753945333,3.47758125,211.56,211.52,4.2525]
[1758753945527,4.2513,211.59,211.53,7.71]
[1758753945734,15.45887519,211.58,211.51,10.41296016]
[1758753946033,7.73,211.56,211.5,58.233]
[1758753946235,3.47727519,211.55,211.51,7.71]
[1758753946636,3.47727519,211.55,211.5,58.233]
[1758753947032,7.73,211.56,211.5,58.233]
[1758753947238,7.73,211.56,211.51,7.71]
[1758753947434,7.73,211.6,211.5,53.98]
[1758753947635,3.47669668,211.59,211.52,7.71]
[1758753947832,3.47669668,211.58,211.52,7.71]
[1758753948038,3.47669668,211.57,211.52,7.71]
[1758753948230,183.28340037,211.63,211.56,4.2517]
[1758753948432,3.47595346,211.62,211.55,7.71]
[1758753948638,7.73,211.67,211.6,10.41296016]
[1758753948837,3.47457414,211.66,211.6,10.41296016]
[1758753949041,7.73,211.64,211.55,7.71]
[1758753949342,3.47457414,211.63,211.55,7.71]
[1758753949539,3.47457414,211.62,211.55,7.71]
[1758753949837,3.47457414,211.61,211.55,7.71]
[1758753950034,7.73,211.64,211.55,7.71]
[1758753950339,7.72410157,211.63,211.55,11.9619]
[1758753950540,3.47360157,211.62,211.55,11.9619]
[1758753950741,3.47360157,211.61,211.55,11.9619]
[1758753950941,3.47360157,211.6,211.55,4.2519]
[1758753951236,4.2505,211.63,211.56,7.71]
[1758753951442,3.46696312,211.62,211.56,7.71]
[1758753951635,7.73,211.64,211.57,7.71]
[1758753951837,3.46645628,211.63,211.57,7.71]
[1758753952139,3.46645628,211.62,211.56,2.70296016]
[1758753952341,7.73,211.64,211.57,7.71]
[1758753952539,3.46539414,211.63,211.57,7.71]
[1758753952739,7.73,211.64,211.57,7.71]
[1758753952940,3.46536124,211.63,211.61,7.71]
[1758753953245,10.43296016,211.68,211.61,7.71]
[1758753953246,7.73,211.68,211.61,7.71]
[1758753953449,3.46372052,211.67,211.61,7.71]
[1758753953740,3.46372052,211.67,211.59,2.70296016]
[1758753953741,3.46372052,211.66,211.6,7.71]
[1758753953943,3.46372052,211.65,211.62,11.6904]
[1758753954141,3.46372052,211.64,211.62,11.6904]
[1758753954344,11.9795,211.68,211.62,11.6904]
[1758753954532,10.75248115,211.67,211.62,11.6904]
[1758753954734,3.46248115,211.66,211.62,11.6904]
[1758753954937,3.46248115,211.65,211.62,11.6904]
[1758753955138,7.29,211.67,211.62,11.6904]
[1758753955340,3.46248062,211.66,211.62,11.6904]
[1758753955544,3.46248062,211.65,211.62,11.6904]
[1758753955847,7.29,211.67,211.62,11.6904]
[1758753956146,3.4615871,211.66,211.62,11.6904]
[1758753956345,3.4615871,211.65,211.62,11.6904]
[1758753956547,7.29,211.67,211.62,11.6904]
[1758753956743,3.46137144,211.66,211.62,11.6904]
[1758753956944,3.46137144,211.65,211.62,4.2504]
[1758753957246,128.2491,211.7,211.64,7.44]
[1758753957442,3.46094459,211.69,211.6,7.44]
[1758753957642,3.46094459,211.68,211.6,21.63186081]
[1758753957837,3.46094459,211.67,211.61,7.44]
[1758753958038,4.2491,211.7,211.61,7.44]
[1758753958239,3.46076818,211.69,211.65,7.44]
[1758753958447,3.46076818,211.68,211.65,7.44]
[1758753958645,3.46076818,211.67,211.65,7.44]
[1758753958847,11.5391,211.7,211.65,7.44]
[1758753959049,3.46036001,211.69,211.65,7.44]
[1758753959245,3.46036001,211.68,211.65,7.44]
[1758753959447,3.46036001,211.67,211.65,7.44]
[1758753959748,11.5391,211.7,211.65,7.44]
[1758753959948,3.46014466,211.69,211.65,7.44]
[1758753960148,3.46014466,211.68,211.65,7.44]
[1758753960346,10.92014466,211.67,211.63,7.44]
[1758753960547,7.46,211.67,211.63,7.44]
[1758753960743,7.46,211.7,211.6,4.251]
[1758753960943,4.2497,211.67,211.6,4.251]
[1758753961650,192.79786016,211.71,211.59,7.66]
[1758753961942,7.46,211.69,211.57,7.66]
[1758753962143,7.46,211.67,211.57,7.66]
[1758753962346,3.45964388,211.66,211.57,7.66]
[1758753962848,3.45964388,211.66,211.59,7.66]
[1758753963451,3.45964388,211.66,211.63,4.2503]
[1758753963646,4.2494,211.69,211.64,7.66]
[1758753963845,3.45889579,211.68,211.64,7.66]
[1758753964049,3.45889579,211.67,211.64,7.66]
[1758753964250,7.46,211.68,211.64,7.66]
[1758753964447,3.45844132,211.67,211.64,7.66]
[1758753964648,7.46,211.68,211.64,7.66]
[1758753964848,3.45844185,211.67,211.64,7.66]
[1758753965047,7.46,211.68,211.61,4.2508]
[1758753965352,3.45847519,211.67,211.6,7.66]
[1758753965651,11.7096,211.68,211.6,7.66]
[1758753965848,11.7096,211.68,211.62,4.2505]
[1758753966951,4.2491,211.7,211.6,7.66]
[1758753967146,3.45749336,211.69,211.62,7.66]
[1758753967346,3.45749336,211.68,211.62,7.66]
[1758753967542,4.2491,211.7,211.62,7.66]
[1758753967745,3.45722472,211.69,211.62,7.66]
[1758753968052,3.45722472,211.68,211.62,7.66]
[1758753968255,4.2491,211.7,211.64,4.2501]
[1758753968451,4.2491,211.7,211.65,7.66]
[1758753968452,3.45699316,211.69,211.65,7.66]
[1758753968653,3.45699316,211.68,211.62,7.66]
[1758753968854,7.46,211.71,211.64,7.66]
[1758753969054,3.45659891,211.7,211.64,7.66]
[1758753969254,7.46,211.71,211.64,7.66]
[1758753969550,3.45643949,211.7,211.64,7.66]
[1758753969848,4.2487,211.72,211.64,2.70296016]
[1758753970051,3.45643949,211.71,211.65,7.66]
[1758753970249,4.2483,211.74,211.65,7.66]
[1758753970455,3.45575144,211.73,211.65,7.66]
[1758753970657,128.2477,211.77,211.68,7.66]
[1758753970860,3.45484499,211.76,211.68,7.66]
[1758753971157,4.2477,211.77,211.71,4.2487]
[1758753971459,135.7072,211.79,211.72,7.66]
[1758753971645,3.45342508,211.78,211.72,7.66]
[1758753971845,7.46,211.76,211.72,7.66]
[1758753972248,186.62675132,211.84,211.72,7.66]
[1758753972249,11.7071,211.8,211.72,7.66]
[1758753972445,7.46,211.8,211.72,7.66]
[1758753972846,7.46,211.8,211.74,4.2481]
[1758753973950,7.46,211.8,211.69,4.2492]
[1758753974153,7.46,211.81,211.69,119.5492]
[1758753974354,4.2475,211.78,211.69,115.3]
[1758753975155,7.46,211.79,211.71,7.66]
[1758753975748,7.46,211.79,211.73,4.2483]
[1758753975955,7.46,211.79,211.71,7.66]
[1758753976844,7.46,211.79,211.73,4.2483]
[1758753980160,7.46,211.79,211.73,11.9083]
[1758753988168,7.46,211.79,211.75,7.38]
[1758753988663,7.24,211.79,211.75,7.38]
[1758753989064,4.2472,211.8,211.75,7.38]
[1758753989267,4.2472,211.8,211.71,2.70296016]
[1758753989268,7.24,211.78,211.7,7.38]
[1758753989568,7.24,211.76,211.66,7.38]
[1758753989867,7.24,211.74,211.66,7.38]
[1758753991267,4.2486,211.73,211.66,11.6297]
[1758753991766,181.3261,211.8,211.7,7.38]
[1758753991767,7.24,211.75,211.7,7.38]
[1758753991970,7.24,211.75,211.69,11.6291]
[1758753992170,7.24,211.75,211.69,7.38]
[1758753993080,7.24,211.79,211.69,7.38]
[1758753993375,3.43831727,211.78,211.72,11.6285]
[1758753993562,11.4873,211.79,211.72,11.6285]
[1758753993764,7.24,211.79,211.72,7.38]
[1758753993978,7.24,211.79,211.72,10.08296016]
[1758753994271,7.24,211.79,211.73,4.2484]
[1758753998179,7.24,211.79,211.74,4.2481]
[1758753998476,7.24,211.78,211.74,7.38]
[1758753999572,7.24,211.78,211.73,7.38]
[1758753999774,7.24,211.78,211.74,7.38]
[1758753999970,7.24,211.82,211.7,7.38]
[1758754000173,7.24,211.8,211.7,7.38]
[1758754000372,7.24,211.78,211.7,7.38]
[1758754000572,8.96683008,211.78,211.7,9.10683008]
[1758754000874,10.68416593,211.77,211.7,9.10683008]
[1758754001073,7.24,211.77,211.7,9.10683008]
[1758754001276,3.44511782,211.76,211.7,13.35573008]
[1758754001465,11.4878,211.77,211.7,9.10683008]
[1758754001670,3.44542046,211.76,211.7,9.10683008]
[1758754001870,11.4878,211.77,211.7,9.10683008]
[1758754003376,11.4878,211.77,211.71,4.2487]
[1758754004279,7.24,211.77,211.73,4.2484]
[1758754004476,7.24,211.81,211.74,1.72683008]
[1758754004681,3.4472839,211.8,211.74,1.72683008]
[1758754004879,7.24,211.82,211.76,4.2477]
[1758754005077,7.24,211.8,211.76,11.6277]
[1758754005878,7.24,211.82,211.76,11.6277]
[1758754006080,7.24,211.8,211.76,11.6277]
[1758754006874,7.24,211.88,211.79,7.38]
[1758754007081,3.44715263,211.87,211.82,1.72683008]
[1758754007272,3.44715263,211.86,211.83,7.38]
[1758754007472,7.24,211.88,211.84,9.10683008]
[1758754007670,3.44706426,211.87,211.84,9.10683008]
[1758754007876,10.68709458,211.86,211.83,1.72683008]
[1758754008071,7.24,211.89,211.83,1.72683008]
[1758754008281,7.24,211.87,211.83,9.10683008]
[1758754008478,3.44709458,211.86,211.83,9.10683008]
[1758754008679,10.68709458,211.86,211.83,1.72683008]
[1758754008877,7.24,211.86,211.83,1.72683008]
[1758754009276,7.24,211.86,211.83,9.10683008]
[1758754009476,11.4854,211.89,211.83,9.10683008]
[1758754009681,3.44786989,211.88,211.83,9.10683008]
[1758754009877,10.68786989,211.87,211.83,9.10683008]
[1758754010079,3.44786989,211.86,211.83,9.10683008]
[1758754010376,7.24,211.87,211.83,9.10683008]
[1758754010580,3.44862006,211.86,211.83,9.10683008]
[1758754010775,7.24,211.87,211.83,9.10683008]
[1758754010978,10.68862006,211.86,211.83,9.10683008]
[1758754011171,7.24,211.89,211.81,1.72683008]
[1758754011371,7.24,211.87,211.79,1.72683008]
[1758754011577,7.24,211.85,211.78,1.72683008]
[1758754011884,3.44815581,211.84,211.78,1.72683008]
[1758754012176,1.72683008,211.86,211.78,1.72683008]
[1758754012177,10.68815581,211.83,211.78,9.10683008]
[1758754012382,3.45100584,211.82,211.78,9.10683008]
[1758754012579,11.4864,211.84,211.78,9.10683008]
[1758754012781,10.69091863,211.83,211.78,9.10683008]
[1758754013084,7.24,211.83,211.79,7.38]
[1758754013584,3.45255576,211.82,211.79,7.38]
[1758754013779,7.24,211.83,211.79,7.38]
[1758754013978,3.452643,211.82,211.79,7.38]
[1758754014181,7.24,211.83,211.79,7.38]
[1758754014483,11.8457,211.87,211.82,1.72683008]
[1758754014683,11.05346035,211.86,211.82,9.21683008]
[1758754014883,3.45346035,211.85,211.82,9.21683008]
[1758754015084,7.6,211.86,211.82,9.21683008]
[1758754015284,3.45328583,211.85,211.82,9.21683008]
[1758754015485,7.6,211.86,211.82,9.21683008]
[1758754015686,3.45364184,211.85,211.82,9.21683008]